[Event "Titled Tuesday Blitz June 6 Late 2023"]
[White "Prieto Aranguren, Alain"]
[Black "Panesso Rivera, Henry"]
[WhiteFideId "2268906"]
[BlackFideId "4402707"]
[WhiteElo "2209"]
[BlackElo "2390"]
[Result "1-0"]
[Round "3"]
[TimeControl "180+2"]
[Date "2023.06.07"]
[WhiteClock "0:00:12"]
[BlackClock "0:00:08"]
[Board "108"]

1. d4 {[%clk 0:03:00]}  Nf6 {[%clk 0:02:58]} 2. c4 {[%clk 0:03:00]}  e6 {[%clk 0:02:58]} 3. Nc3 {[%clk 0:02:59]}  d5 {[%clk 0:02:59]} 4. cxd5 {[%clk 0:02:59]}  exd5 {[%clk 0:02:59]} 5. Bg5 {[%clk 0:02:59]}  c6 {[%clk 0:02:59]} 6. Qc2 {[%clk 0:02:59]}  Bd6 {[%clk 0:02:59]} 7. e3 {[%clk 0:02:59]}  h6 {[%clk 0:03:00]} 8. Bh4 {[%clk 0:02:59]}  O-O {[%clk 0:03:00]} 9. Bd3 {[%clk 0:02:58]}  Nbd7 {[%clk 0:03:00]} 10. Nf3 {[%clk 0:02:59]}  Re8 {[%clk 0:03:00]} 11. O-O {[%clk 0:02:57]}  Qe7 {[%clk 0:03:00]} 12. Bg3 {[%clk 0:02:55]}  Bxg3 {[%clk 0:02:59]} 13. hxg3 {[%clk 0:02:55]}  Nf8 {[%clk 0:02:58]} 14. Rab1 {[%clk 0:02:54]}  Be6 {[%clk 0:02:54]} 15. b4 {[%clk 0:02:53]}  a6 {[%clk 0:02:54]} 16. a4 {[%clk 0:02:53]}  N6d7 {[%clk 0:02:54]} 17. b5 {[%clk 0:02:52]}  axb5 {[%clk 0:02:53]} 18. axb5 {[%clk 0:02:52]}  c5 {[%clk 0:02:53]} 19. dxc5 {[%clk 0:02:47]}  Nxc5 {[%clk 0:02:53]} 20. Nd4 {[%clk 0:02:45]}  b6 {[%clk 0:02:51]} 21. Nc6 {[%clk 0:02:41]}  Qf6 {[%clk 0:02:51]} 22. Ne2 {[%clk 0:02:35]}  Nxd3 {[%clk 0:02:48]} 23. Qxd3 {[%clk 0:02:33]}  Bf5 {[%clk 0:02:48]} 24. Qb3 {[%clk 0:02:19]}  Bxb1 {[%clk 0:02:46]} 25. Qxb1 {[%clk 0:02:13]}  Qd6 {[%clk 0:02:45]} 26. Ned4 {[%clk 0:02:10]}  Ng6 {[%clk 0:02:29]} 27. Rd1 {[%clk 0:02:04]}  Ne7 {[%clk 0:02:24]} 28. Qb2 {[%clk 0:02:00]}  Qa3 {[%clk 0:02:19]} 29. Qe2 {[%clk 0:01:59]}  Qa4 {[%clk 0:02:11]} 30. Qg4 {[%clk 0:01:53]}  Nxc6 {[%clk 0:02:04]} 31. bxc6 {[%clk 0:01:47]}  Re4 {[%clk 0:02:04]} 32. f4 {[%clk 0:01:34]}  g6 {[%clk 0:01:53]} 33. c7 {[%clk 0:01:14]}  Qc4 {[%clk 0:01:41]} 34. Qd7 {[%clk 0:01:03]}  Ree8 {[%clk 0:01:26]} 35. f5 {[%clk 0:00:33]}  Rac8 {[%clk 0:01:21]} 36. fxg6 {[%clk 0:00:32]}  Rf8 {[%clk 0:01:11]} 37. gxf7+ {[%clk 0:00:30]}  Kh8 {[%clk 0:01:11]} 38. Qe6 {[%clk 0:00:23]}  Rxf7 {[%clk 0:00:55]} 39. Qxf7 {[%clk 0:00:21]}  Qxc7 {[%clk 0:00:55]} 40. Qxc7 {[%clk 0:00:19]}  Rxc7 {[%clk 0:00:56]} 41. Rb1 {[%clk 0:00:19]}  Rb7 {[%clk 0:00:55]} 42. Rb5 {[%clk 0:00:19]}  Kg7 {[%clk 0:00:55]} 43. Kf2 {[%clk 0:00:20]}  Kf7 {[%clk 0:00:55]} 44. Kf3 {[%clk 0:00:20]}  Ke7 {[%clk 0:00:54]} 45. Kf4 {[%clk 0:00:21]}  Kd6 {[%clk 0:00:54]} 46. g4 {[%clk 0:00:20]}  Rf7+ {[%clk 0:00:53]} 47. Kg3 {[%clk 0:00:19]}  Kc7 {[%clk 0:00:50]} 48. Kh4 {[%clk 0:00:19]}  Re7 {[%clk 0:00:50]} 49. Kh5 {[%clk 0:00:19]}  Re4 {[%clk 0:00:49]} 50. Kxh6 {[%clk 0:00:19]}  Rxg4 {[%clk 0:00:49]} 51. Rb2 {[%clk 0:00:18]}  Rg3 {[%clk 0:00:48]} 52. Nf5 {[%clk 0:00:17]}  Rg4 {[%clk 0:00:47]} 53. g3 {[%clk 0:00:16]}  Kc6 {[%clk 0:00:46]} 54. Kh5 {[%clk 0:00:16]}  Rg8 {[%clk 0:00:46]} 55. g4 {[%clk 0:00:16]}  Kc5 {[%clk 0:00:46]} 56. g5 {[%clk 0:00:16]}  b5 {[%clk 0:00:42]} 57. g6 {[%clk 0:00:16]}  Kc4 {[%clk 0:00:41]} 58. g7 {[%clk 0:00:16]}  b4 {[%clk 0:00:41]} 59. Kh6 {[%clk 0:00:16]}  Kc3 {[%clk 0:00:41]} 60. Rb1 {[%clk 0:00:16]}  b3 {[%clk 0:00:15]} 61. Kh7 {[%clk 0:00:16]}  Rb8 {[%clk 0:00:15]} 62. g8=Q {[%clk 0:00:16]}  Rxg8 {[%clk 0:00:14]} 63. Kxg8 {[%clk 0:00:16]}  Kc2 {[%clk 0:00:15]} 64. Rf1 {[%clk 0:00:14]}  b2 {[%clk 0:00:15]} 65. Kf7 {[%clk 0:00:15]}  Kd3 {[%clk 0:00:10]} 66. Ke6 {[%clk 0:00:14]}  d4 {[%clk 0:00:08]} 67. exd4 {[%clk 0:00:13]}  Ke2 {[%clk 0:00:08]} 68. Rh1 {[%clk 0:00:12]} 1-0


[Site "https://www.chess.com"]

[Event "Titled Tuesday Blitz June 6 Late 2023"]
[White "Mortazavi, Ali"]
[Black "Pace, Christopher"]
[WhiteFideId "401323"]
[BlackFideId "2610167"]
[WhiteElo "2339"]
[BlackElo "2326"]
[Result "1-0"]
[Round "3"]
[TimeControl "180+2"]
[Date "2023.06.07"]
[WhiteClock "0:00:28"]
[BlackClock "0:00:03"]
[Board "110"]

1. Nf3 {[%clk 0:02:54]}  Nf6 {[%clk 0:02:28]} 2. g3 {[%clk 0:02:51]}  g6 {[%clk 0:02:20]} 3. Bg2 {[%clk 0:02:52]}  Bg7 {[%clk 0:02:20]} 4. O-O {[%clk 0:02:53]}  O-O {[%clk 0:02:20]} 5. d3 {[%clk 0:02:54]}  d6 {[%clk 0:02:20]} 6. e4 {[%clk 0:02:54]}  Nc6 {[%clk 0:02:20]} 7. Nc3 {[%clk 0:02:53]}  e5 {[%clk 0:02:16]} 8. a4 {[%clk 0:02:53]}  h6 {[%clk 0:02:12]} 9. a5 {[%clk 0:02:53]}  a6 {[%clk 0:02:11]} 10. h3 {[%clk 0:02:53]}  Nd7 {[%clk 0:02:09]} 11. Nh4 {[%clk 0:02:20]}  Kh7 {[%clk 0:02:05]} 12. Nd5 {[%clk 0:02:18]}  Nf6 {[%clk 0:02:02]} 13. Ne3 {[%clk 0:02:14]}  Be6 {[%clk 0:01:58]} 14. c3 {[%clk 0:02:05]}  d5 {[%clk 0:01:58]} 15. Qe2 {[%clk 0:02:02]}  d4 {[%clk 0:01:51]} 16. Nc2 {[%clk 0:01:57]}  Qd7 {[%clk 0:01:51]} 17. Kh2 {[%clk 0:01:57]}  Rad8 {[%clk 0:01:38]} 18. c4 {[%clk 0:01:56]}  Qe7 {[%clk 0:01:15]} 19. b4 {[%clk 0:01:45]}  Rfe8 {[%clk 0:00:41]} 20. b5 {[%clk 0:01:41]}  Nb8 {[%clk 0:00:39]} 21. Ba3 {[%clk 0:01:40]}  Qd7 {[%clk 0:00:39]} 22. Rab1 {[%clk 0:01:34]}  c6 {[%clk 0:00:33]} 23. Nf3 {[%clk 0:01:26]}  Ng8 {[%clk 0:00:26]} 24. bxa6 {[%clk 0:01:20]}  Nxa6 {[%clk 0:00:26]} 25. Rb6 {[%clk 0:01:21]}  Rb8 {[%clk 0:00:19]} 26. Rfb1 {[%clk 0:01:21]}  Bf6 {[%clk 0:00:19]} 27. Nb4 {[%clk 0:00:53]}  Nxb4 {[%clk 0:00:18]} 28. Bxb4 {[%clk 0:00:49]}  Qc7 {[%clk 0:00:18]} 29. Bc5 {[%clk 0:00:45]}  Be7 {[%clk 0:00:16]} 30. Bxe7 {[%clk 0:00:42]}  Nxe7 {[%clk 0:00:16]} 31. Qb2 {[%clk 0:00:42]}  Bc8 {[%clk 0:00:14]} 32. a6 {[%clk 0:00:39]}  Rg8 {[%clk 0:00:03]} 33. Nd2 {[%clk 0:00:28]} 1-0


[Site "https://www.chess.com"]

[Event "Titled Tuesday Blitz June 6 Late 2023"]
[White "Olsson, William"]
[Black "Streltsov, Alexey"]
[WhiteFideId "1741721"]
[BlackFideId "24104434"]
[WhiteElo "2197"]
[BlackElo "2563"]
[Result "0-1"]
[Round "3"]
[TimeControl "180+2"]
[Date "2023.06.07"]
[WhiteClock "0:01:00"]
[BlackClock "0:01:20"]
[Board "111"]

1. c4 {[%clk 0:03:00]}  e6 {[%clk 0:02:59]} 2. Nf3 {[%clk 0:03:00]}  d5 {[%clk 0:03:00]} 3. g3 {[%clk 0:03:00]}  c6 {[%clk 0:03:00]} 4. Bg2 {[%clk 0:03:00]}  Nf6 {[%clk 0:03:00]} 5. O-O {[%clk 0:03:00]}  Nbd7 {[%clk 0:03:01]} 6. d4 {[%clk 0:02:59]}  dxc4 {[%clk 0:03:01]} 7. Ne5 {[%clk 0:02:54]}  Nxe5 {[%clk 0:02:59]} 8. dxe5 {[%clk 0:02:54]}  Qxd1 {[%clk 0:03:00]} 9. Rxd1 {[%clk 0:02:54]}  Nd5 {[%clk 0:02:59]} 10. a4 {[%clk 0:02:47]}  a5 {[%clk 0:02:34]} 11. Na3 {[%clk 0:02:40]}  Bxa3 {[%clk 0:02:26]} 12. Rxa3 {[%clk 0:02:41]}  b6 {[%clk 0:02:26]} 13. Rd4 {[%clk 0:02:27]}  Ba6 {[%clk 0:02:26]} 14. e4 {[%clk 0:02:21]}  Nb4 {[%clk 0:02:26]} 15. Rc3 {[%clk 0:02:07]}  Ke7 {[%clk 0:01:59]} 16. Bf1 {[%clk 0:01:54]}  Rhd8 {[%clk 0:01:55]} 17. Rxd8 {[%clk 0:01:24]}  Rxd8 {[%clk 0:01:56]} 18. Bxc4 {[%clk 0:01:24]}  Rd1+ {[%clk 0:01:40]} 19. Kg2 {[%clk 0:01:24]}  Bxc4 {[%clk 0:01:40]} 20. Rxc4 {[%clk 0:01:24]}  Nd3 {[%clk 0:01:41]} 21. Be3 {[%clk 0:01:20]}  Nxe5 {[%clk 0:01:38]} 22. Rc3 {[%clk 0:01:12]}  c5 {[%clk 0:01:36]} 23. f4 {[%clk 0:01:04]}  Nd3 {[%clk 0:01:27]} 24. Kf3 {[%clk 0:01:00]}  Nxb2 {[%clk 0:01:20]} 0-1


[Site "https://www.chess.com"]

[Event "Titled Tuesday Blitz June 6 Late 2023"]
[White "Weisz, Bryan"]
[Black "Moral Garcia, Serafin"]
[WhiteFideId "30934133"]
[BlackFideId "2201925"]
[WhiteElo "2312"]
[BlackElo "2274"]
[Result "0-1"]
[Round "3"]
[TimeControl "180+2"]
[Date "2023.06.07"]
[WhiteClock "0:00:06"]
[BlackClock "0:00:17"]
[Board "112"]

1. b4 {[%clk 0:02:58]}  e5 {[%clk 0:02:59]} 2. Bb2 {[%clk 0:02:57]}  Bxb4 {[%clk 0:02:59]} 3. Bxe5 {[%clk 0:02:58]}  Nf6 {[%clk 0:02:59]} 4. c3 {[%clk 0:02:54]}  Be7 {[%clk 0:02:59]} 5. d4 {[%clk 0:02:49]}  d5 {[%clk 0:02:54]} 6. e3 {[%clk 0:02:45]}  O-O {[%clk 0:02:50]} 7. Nf3 {[%clk 0:02:42]}  Bg4 {[%clk 0:02:43]} 8. Nbd2 {[%clk 0:02:40]}  b6 {[%clk 0:02:40]} 9. Bd3 {[%clk 0:02:34]}  c5 {[%clk 0:02:38]} 10. c4 {[%clk 0:02:30]}  Nc6 {[%clk 0:02:34]} 11. cxd5 {[%clk 0:02:16]}  Nxd5 {[%clk 0:02:21]} 12. Qb1 {[%clk 0:01:55]}  h6 {[%clk 0:01:50]} 13. O-O {[%clk 0:01:52]}  cxd4 {[%clk 0:01:46]} 14. Bxd4 {[%clk 0:01:43]}  Bxf3 {[%clk 0:01:24]} 15. Nxf3 {[%clk 0:01:40]}  Nxd4 {[%clk 0:01:23]} 16. Nxd4 {[%clk 0:01:40]}  Bf6 {[%clk 0:01:23]} 17. Qb3 {[%clk 0:01:26]}  Bxd4 {[%clk 0:01:18]} 18. exd4 {[%clk 0:01:23]}  Qd6 {[%clk 0:01:18]} 19. Rfe1 {[%clk 0:01:15]}  Rad8 {[%clk 0:01:14]} 20. Rad1 {[%clk 0:01:11]}  Rfe8 {[%clk 0:01:11]} 21. Rxe8+ {[%clk 0:01:04]}  Rxe8 {[%clk 0:01:10]} 22. Bc4 {[%clk 0:01:01]}  Rd8 {[%clk 0:01:07]} 23. Re1 {[%clk 0:00:56]}  Kf8 {[%clk 0:01:00]} 24. Re5 {[%clk 0:00:42]}  Nf6 {[%clk 0:00:53]} 25. Bxf7 {[%clk 0:00:39]}  Qxd4 {[%clk 0:00:52]} 26. Re1 {[%clk 0:00:35]}  Ne4 {[%clk 0:00:34]} 27. Qf3 {[%clk 0:00:31]}  Qxf2+ {[%clk 0:00:32]} 28. Qxf2 {[%clk 0:00:30]}  Nxf2 {[%clk 0:00:33]} 29. Bg6 {[%clk 0:00:23]}  Ng4 {[%clk 0:00:30]} 30. Rc1 {[%clk 0:00:20]}  Nf6 {[%clk 0:00:29]} 31. Rc7 {[%clk 0:00:19]}  Rd7 {[%clk 0:00:29]} 32. Rc3 {[%clk 0:00:16]}  Ke7 {[%clk 0:00:29]} 33. Kf2 {[%clk 0:00:15]}  Kd6 {[%clk 0:00:27]} 34. h4 {[%clk 0:00:11]}  Ke5 {[%clk 0:00:27]} 35. h5 {[%clk 0:00:11]}  Ne4+ {[%clk 0:00:24]} 36. Bxe4 {[%clk 0:00:10]}  Kxe4 {[%clk 0:00:25]} 37. Ke2 {[%clk 0:00:09]}  Kf4 {[%clk 0:00:18]} 38. Rc4+ {[%clk 0:00:06]}  Kg5 {[%clk 0:00:18]} 39. g4 {[%clk 0:00:05]}  Re7+ {[%clk 0:00:18]} 40. Kf3 {[%clk 0:00:05]}  Rf7+ {[%clk 0:00:17]} 41. Kg3 {[%clk 0:00:06]}  Rd7 {[%clk 0:00:17]} 42. Re4 {[%clk 0:00:05]}  Rd3+ {[%clk 0:00:17]} 43. Kf2 {[%clk 0:00:05]}  Kh4 {[%clk 0:00:17]} 44. Kg2 {[%clk 0:00:04]}  Ra3 {[%clk 0:00:17]} 45. Re7 {[%clk 0:00:04]}  Rxa2+ {[%clk 0:00:16]} 46. Kf3 {[%clk 0:00:05]}  Ra3+ {[%clk 0:00:16]} 47. Kf2 {[%clk 0:00:04]}  Kxg4 {[%clk 0:00:16]} 48. Rxg7+ {[%clk 0:00:05]}  Kxh5 {[%clk 0:00:16]} 49. Rg8 {[%clk 0:00:05]}  b5 {[%clk 0:00:16]} 50. Rb8 {[%clk 0:00:05]}  a6 {[%clk 0:00:16]} 51. Ke2 {[%clk 0:00:05]}  Kg5 {[%clk 0:00:17]} 52. Kd2 {[%clk 0:00:06]}  Ra4 {[%clk 0:00:17]} 0-1


[Site "https://www.chess.com"]

[Event "Titled Tuesday Blitz June 6 Late 2023"]
[White "Matthew_Clarke"]
[Black "Roberson, Peter T"]
[BlackFideId "412384"]
[WhiteElo "2269"]
[BlackElo "2346"]
[Result "0-1"]
[Round "3"]
[TimeControl "180+2"]
[Date "2023.06.07"]
[WhiteClock "0:00:03"]
[BlackClock "0:00:19"]
[Board "115"]

1. d4 {[%clk 0:03:00]}  Nf6 {[%clk 0:02:56]} 2. c4 {[%clk 0:03:01]}  e6 {[%clk 0:02:55]} 3. g3 {[%clk 0:03:01]}  c5 {[%clk 0:02:54]} 4. d5 {[%clk 0:02:59]}  exd5 {[%clk 0:02:54]} 5. cxd5 {[%clk 0:03:00]}  d6 {[%clk 0:02:55]} 6. Bg2 {[%clk 0:03:00]}  g6 {[%clk 0:02:56]} 7. Nc3 {[%clk 0:02:59]}  Bg7 {[%clk 0:02:57]} 8. e4 {[%clk 0:03:00]}  O-O {[%clk 0:02:58]} 9. Nf3 {[%clk 0:02:54]}  b5 {[%clk 0:02:57]} 10. Nd2 {[%clk 0:02:23]}  b4 {[%clk 0:02:53]} 11. Ne2 {[%clk 0:02:23]}  a5 {[%clk 0:02:51]} 12. a3 {[%clk 0:02:18]}  Ba6 {[%clk 0:02:50]} 13. O-O {[%clk 0:02:17]}  Nbd7 {[%clk 0:02:50]} 14. Re1 {[%clk 0:02:11]}  Ne5 {[%clk 0:02:48]} 15. axb4 {[%clk 0:01:48]}  axb4 {[%clk 0:02:45]} 16. f4 {[%clk 0:01:44]}  Nd3 {[%clk 0:02:44]} 17. Rf1 {[%clk 0:01:36]}  Re8 {[%clk 0:02:40]} 18. Rf3 {[%clk 0:00:34]}  Ng4 {[%clk 0:02:09]} 19. Rxa6 {[%clk 0:00:29]}  Nxc1 {[%clk 0:01:57]} 20. Rxa8 {[%clk 0:00:29]}  Nxe2+ {[%clk 0:01:58]} 21. Qxe2 {[%clk 0:00:29]}  Qxa8 {[%clk 0:01:59]} 22. h3 {[%clk 0:00:18]}  Bd4+ {[%clk 0:01:57]} 23. Kh1 {[%clk 0:00:18]}  Nf6 {[%clk 0:01:57]} 24. Kh2 {[%clk 0:00:15]}  Qxd5 {[%clk 0:01:38]} 25. Qb5 {[%clk 0:00:12]}  Qa2 {[%clk 0:01:30]} 26. e5 {[%clk 0:00:10]}  dxe5 {[%clk 0:00:24]} 27. fxe5 {[%clk 0:00:11]}  Rxe5 {[%clk 0:00:25]} 28. Rxf6 {[%clk 0:00:10]}  Re1 {[%clk 0:00:25]} 29. Rf1 {[%clk 0:00:08]}  Rxf1 {[%clk 0:00:24]} 30. Nxf1 {[%clk 0:00:04]}  Qxb2 {[%clk 0:00:24]} 31. g4 {[%clk 0:00:04]}  Be5+ {[%clk 0:00:23]} 32. Ng3 {[%clk 0:00:04]}  Qc3 {[%clk 0:00:19]} 33. Qe8+ {[%clk 0:00:02]}  Kg7 {[%clk 0:00:19]} 34. Bd5 {[%clk 0:00:03]}  Qxg3+ {[%clk 0:00:19]} 0-1


[Site "https://www.chess.com"]

[Event "Titled Tuesday Blitz June 6 Late 2023"]
[White "Harish, Neeraj"]
[Black "Spata, German"]
[WhiteFideId "30958130"]
[BlackFideId "113026"]
[WhiteElo "1879"]
[BlackElo "2260"]
[Result "1-0"]
[Round "3"]
[TimeControl "180+2"]
[Date "2023.06.07"]
[WhiteClock "0:00:40"]
[BlackClock "0:00:58"]
[Board "116"]

1. e4 {[%clk 0:03:00]}  d5 {[%clk 0:02:51]} 2. exd5 {[%clk 0:03:00]}  Qxd5 {[%clk 0:02:51]} 3. Nc3 {[%clk 0:02:59]}  Qd8 {[%clk 0:02:51]} 4. d4 {[%clk 0:02:55]}  Nf6 {[%clk 0:02:52]} 5. Nf3 {[%clk 0:02:51]}  Bg4 {[%clk 0:02:52]} 6. h3 {[%clk 0:02:50]}  Bxf3 {[%clk 0:02:52]} 7. Qxf3 {[%clk 0:02:50]}  c6 {[%clk 0:02:53]} 8. Be3 {[%clk 0:02:46]}  e6 {[%clk 0:02:53]} 9. O-O-O {[%clk 0:02:43]}  Bb4 {[%clk 0:02:49]} 10. Ne2 {[%clk 0:02:30]}  Qd5 {[%clk 0:02:48]} 11. Qxd5 {[%clk 0:02:25]}  Nxd5 {[%clk 0:02:49]} 12. c3 {[%clk 0:02:26]}  Nxe3 {[%clk 0:02:43]} 13. fxe3 {[%clk 0:02:25]}  Bd6 {[%clk 0:02:43]} 14. e4 {[%clk 0:02:22]}  O-O {[%clk 0:02:41]} 15. Ng1 {[%clk 0:02:14]}  c5 {[%clk 0:02:41]} 16. Nf3 {[%clk 0:02:13]}  cxd4 {[%clk 0:02:41]} 17. cxd4 {[%clk 0:02:14]}  Nc6 {[%clk 0:02:39]} 18. Bb5 {[%clk 0:02:10]}  Rac8 {[%clk 0:02:37]} 19. Kb1 {[%clk 0:02:10]}  g6 {[%clk 0:02:26]} 20. Rhe1 {[%clk 0:02:03]}  Bb4 {[%clk 0:02:24]} 21. Re2 {[%clk 0:02:02]}  a6 {[%clk 0:02:24]} 22. Ba4 {[%clk 0:01:59]}  b5 {[%clk 0:02:23]} 23. Bc2 {[%clk 0:01:56]}  Rfd8 {[%clk 0:02:20]} 24. a3 {[%clk 0:01:55]}  Ba5 {[%clk 0:02:20]} 25. d5 {[%clk 0:01:49]}  exd5 {[%clk 0:02:13]} 26. exd5 {[%clk 0:01:50]}  Nb8 {[%clk 0:02:08]} 27. d6 {[%clk 0:01:32]}  Nd7 {[%clk 0:02:06]} 28. Re7 {[%clk 0:01:24]}  Nc5 {[%clk 0:01:49]} 29. b4 {[%clk 0:01:13]}  Bb6 {[%clk 0:01:47]} 30. bxc5 {[%clk 0:01:12]}  Bxc5 {[%clk 0:01:48]} 31. Rc7 {[%clk 0:01:01]}  Bxa3 {[%clk 0:01:35]} 32. Bb3 {[%clk 0:00:59]}  Rb8 {[%clk 0:01:16]} 33. Rxf7 {[%clk 0:00:46]}  Rxd6 {[%clk 0:00:58]} 34. Rb7+ {[%clk 0:00:40]} 1-0


[Site "https://www.chess.com"]

[Event "Titled Tuesday Blitz June 6 Late 2023"]
[White "Golubev, Mikhail"]
[Black "Cluke86"]
[WhiteFideId "14100983"]
[WhiteElo "2374"]
[BlackElo "2140"]
[Result "1-0"]
[Round "3"]
[TimeControl "180+2"]
[Date "2023.06.07"]
[WhiteClock "0:00:06"]
[BlackClock "0:00:02"]
[Board "121"]

1. e4 {[%clk 0:03:00]}  d6 {[%clk 0:02:59]} 2. d4 {[%clk 0:02:59]}  Nf6 {[%clk 0:02:59]} 3. Nc3 {[%clk 0:02:59]}  e5 {[%clk 0:02:59]} 4. Nf3 {[%clk 0:02:58]}  Nbd7 {[%clk 0:02:59]} 5. Bc4 {[%clk 0:02:58]}  Be7 {[%clk 0:02:58]} 6. a4 {[%clk 0:02:58]}  c6 {[%clk 0:02:58]} 7. O-O {[%clk 0:02:45]}  Qc7 {[%clk 0:02:56]} 8. Re1 {[%clk 0:02:32]}  h6 {[%clk 0:02:53]} 9. a5 {[%clk 0:02:28]}  g5 {[%clk 0:02:49]} 10. dxe5 {[%clk 0:02:21]}  dxe5 {[%clk 0:02:45]} 11. Nd2 {[%clk 0:02:17]}  Nf8 {[%clk 0:02:36]} 12. Nf1 {[%clk 0:02:16]}  Ne6 {[%clk 0:02:20]} 13. Ng3 {[%clk 0:02:07]}  Nf4 {[%clk 0:02:10]} 14. Bxf4 {[%clk 0:01:46]}  gxf4 {[%clk 0:02:11]} 15. Nf5 {[%clk 0:01:45]}  Bxf5 {[%clk 0:01:20]} 16. exf5 {[%clk 0:01:46]}  Rd8 {[%clk 0:01:19]} 17. Qf3 {[%clk 0:01:45]}  h5 {[%clk 0:01:06]} 18. Ne4 {[%clk 0:01:41]}  Kf8 {[%clk 0:01:01]} 19. Qb3 {[%clk 0:01:17]}  Nd5 {[%clk 0:00:58]} 20. f6 {[%clk 0:01:12]}  Bxf6 {[%clk 0:00:55]} 21. Bxd5 {[%clk 0:01:11]}  cxd5 {[%clk 0:00:49]} 22. Nxf6 {[%clk 0:01:08]}  Qc6 {[%clk 0:00:47]} 23. Rxe5 {[%clk 0:00:37]}  Qxf6 {[%clk 0:00:47]} 24. Rae1 {[%clk 0:00:33]}  b6 {[%clk 0:00:31]} 25. Rxd5 {[%clk 0:00:25]}  Kg7 {[%clk 0:00:24]} 26. axb6 {[%clk 0:00:21]}  axb6 {[%clk 0:00:22]} 27. c3 {[%clk 0:00:17]}  Rhe8 {[%clk 0:00:13]} 28. Rxe8 {[%clk 0:00:14]}  Rxe8 {[%clk 0:00:11]} 29. Rd1 {[%clk 0:00:13]}  Re2 {[%clk 0:00:08]} 30. Qb5 {[%clk 0:00:11]}  Qe5 {[%clk 0:00:06]} 31. Qxe5+ {[%clk 0:00:07]}  Rxe5 {[%clk 0:00:07]} 32. Kf1 {[%clk 0:00:06]}  f3 {[%clk 0:00:06]} 33. gxf3 {[%clk 0:00:06]}  Rb5 {[%clk 0:00:06]} 34. Rd2 {[%clk 0:00:05]}  Re5 {[%clk 0:00:06]} 35. Re2 {[%clk 0:00:05]}  Rd5 {[%clk 0:00:05]} 36. Ke1 {[%clk 0:00:05]}  Kf6 {[%clk 0:00:06]} 37. Rd2 {[%clk 0:00:05]}  Rg5 {[%clk 0:00:06]} 38. Ke2 {[%clk 0:00:04]}  Ke5 {[%clk 0:00:06]} 39. Rd4 {[%clk 0:00:04]}  Rg2 {[%clk 0:00:06]} 40. Rb4 {[%clk 0:00:04]}  Rxh2 {[%clk 0:00:06]} 41. Rxb6 {[%clk 0:00:04]}  Kf4 {[%clk 0:00:06]} 42. Rb4+ {[%clk 0:00:04]}  Kg5 {[%clk 0:00:06]} 43. Rb5+ {[%clk 0:00:03]}  Kg6 {[%clk 0:00:05]} 44. Rb6+ {[%clk 0:00:03]}  Kg5 {[%clk 0:00:05]} 45. Rb5+ {[%clk 0:00:03]}  Kg6 {[%clk 0:00:05]} 46. Rb4 {[%clk 0:00:04]}  Kg5 {[%clk 0:00:06]} 47. Re4 {[%clk 0:00:04]}  h4 {[%clk 0:00:06]} 48. Rg4+ {[%clk 0:00:03]}  Kh5 {[%clk 0:00:06]} 49. b4 {[%clk 0:00:03]}  Rh1 {[%clk 0:00:07]} 50. Rg8 {[%clk 0:00:03]}  h3 {[%clk 0:00:07]} 51. Rh8+ {[%clk 0:00:03]}  Kg5 {[%clk 0:00:06]} 52. Rg8+ {[%clk 0:00:04]}  Kf5 {[%clk 0:00:06]} 53. Rh8 {[%clk 0:00:03]}  h2 {[%clk 0:00:06]} 54. b5 {[%clk 0:00:03]}  Ke6 {[%clk 0:00:04]} 55. Rh6+ {[%clk 0:00:03]}  Kd5 {[%clk 0:00:03]} 56. c4+ {[%clk 0:00:04]}  Kxc4 {[%clk 0:00:03]} 57. Rh5 {[%clk 0:00:03]}  Rb1 {[%clk 0:00:03]} 58. Rxh2 {[%clk 0:00:03]}  Rxb5 {[%clk 0:00:04]} 59. Rh4+ {[%clk 0:00:03]}  Kc5 {[%clk 0:00:04]} 60. Rh5+ {[%clk 0:00:02]}  Kc6 {[%clk 0:00:04]} 61. Rxb5 {[%clk 0:00:03]}  Kxb5 {[%clk 0:00:05]} 62. f4 {[%clk 0:00:02]}  Kc6 {[%clk 0:00:06]} 63. Kf3 {[%clk 0:00:03]}  Kd5 {[%clk 0:00:06]} 64. Kg4 {[%clk 0:00:03]}  Ke6 {[%clk 0:00:06]} 65. Kg5 {[%clk 0:00:03]}  Ke7 {[%clk 0:00:05]} 66. Kf5 {[%clk 0:00:03]}  Ke8 {[%clk 0:00:05]} 67. Kf6 {[%clk 0:00:04]}  Kf8 {[%clk 0:00:05]} 68. f5 {[%clk 0:00:04]}  Ke8 {[%clk 0:00:05]} 69. Kg7 {[%clk 0:00:04]}  Ke7 {[%clk 0:00:05]} 70. f6+ {[%clk 0:00:05]}  Ke6 {[%clk 0:00:05]} 71. f3 {[%clk 0:00:05]}  Kf5 {[%clk 0:00:02]} 72. Kxf7 {[%clk 0:00:06]} 1-0


[Site "https://www.chess.com"]

[Event "Titled Tuesday Blitz June 6 Late 2023"]
[White "Bilan, Danila"]
[Black "Ricaurte Lopez, Juan Carlos"]
[WhiteFideId "24161918"]
[BlackFideId "3600327"]
[WhiteElo "2146"]
[BlackElo "2200"]
[Result "1-0"]
[Round "3"]
[TimeControl "180+2"]
[Date "2023.06.07"]
[WhiteClock "0:00:04"]
[BlackClock "0:00:03"]
[Board "123"]

1. d4 {[%clk 0:02:55]}  Nf6 {[%clk 0:02:55]} 2. Nf3 {[%clk 0:02:55]}  e6 {[%clk 0:02:53]} 3. g3 {[%clk 0:02:54]}  b6 {[%clk 0:02:52]} 4. Bg2 {[%clk 0:02:53]}  Bb7 {[%clk 0:02:52]} 5. O-O {[%clk 0:02:53]}  c5 {[%clk 0:02:52]} 6. c4 {[%clk 0:02:54]}  cxd4 {[%clk 0:02:49]} 7. Qxd4 {[%clk 0:02:43]}  Nc6 {[%clk 0:02:33]} 8. Qd1 {[%clk 0:02:38]}  d5 {[%clk 0:02:32]} 9. Nc3 {[%clk 0:02:24]}  Be7 {[%clk 0:02:25]} 10. cxd5 {[%clk 0:02:16]}  exd5 {[%clk 0:02:24]} 11. Bf4 {[%clk 0:02:05]}  O-O {[%clk 0:02:22]} 12. Rc1 {[%clk 0:02:00]}  a6 {[%clk 0:02:11]} 13. Ne5 {[%clk 0:01:44]}  Na5 {[%clk 0:02:09]} 14. Qd3 {[%clk 0:01:32]}  b5 {[%clk 0:02:05]} 15. Rfd1 {[%clk 0:01:27]}  Nc4 {[%clk 0:02:01]} 16. Nxc4 {[%clk 0:01:14]}  bxc4 {[%clk 0:02:00]} 17. Qd4 {[%clk 0:01:10]}  Qa5 {[%clk 0:01:56]} 18. Nxd5 {[%clk 0:00:57]}  Nxd5 {[%clk 0:01:51]} 19. Bxd5 {[%clk 0:00:56]}  Bxd5 {[%clk 0:01:50]} 20. Qxd5 {[%clk 0:00:56]}  Qxa2 {[%clk 0:01:48]} 21. Be5 {[%clk 0:00:52]}  Rac8 {[%clk 0:01:35]} 22. Bc3 {[%clk 0:00:42]}  Rfd8 {[%clk 0:01:27]} 23. Qb7 {[%clk 0:00:36]}  Bf8 {[%clk 0:01:10]} 24. Ra1 {[%clk 0:00:29]}  Rxd1+ {[%clk 0:00:54]} 25. Rxd1 {[%clk 0:00:30]}  Re8 {[%clk 0:00:53]} 26. Rd7 {[%clk 0:00:24]}  Rxe2 {[%clk 0:00:46]} 27. Rd8 {[%clk 0:00:13]}  Qb1+ {[%clk 0:00:21]} 28. Kg2 {[%clk 0:00:13]}  Qf5 {[%clk 0:00:15]} 29. Qf3 {[%clk 0:00:03]}  Qxf3+ {[%clk 0:00:03]} 30. Kxf3 {[%clk 0:00:04]} 1-0


[Site "https://www.chess.com"]